[Event "*** SCC Grand Prix: Titled Tuesday Blitz"]
[Site "Chess.com"]
[Date "2020.06.02"]
[Round "2"]
[White "Shushik"]
[Black "eightbyeightchess"]
[Result "1/2-1/2"]
[WhiteElo "2164"]
[BlackElo "2396"]
[TimeControl "180+1"]
[EndTime "10:20:03 PDT"]
[Termination "Game drawn - insufficient material"]

1. e4 {[%clk 0:03:00.9]} 1... e6 {[%clk 0:02:58.8]} 2. d4 {[%clk 0:03:00.2]}
2... d5 {[%clk 0:02:56.1]} 3. Nd2 {[%clk 0:03:00.1]} 3... Nf6 {[%clk 0:02:55.8]}
4. e5 {[%clk 0:03:00.2]} 4... Nfd7 {[%clk 0:02:55.8]} 5. Bd3 {[%clk 0:03:00.3]}
5... c5 {[%clk 0:02:56.2]} 6. c3 {[%clk 0:03:00.1]} 6... Nc6 {[%clk 0:02:56.2]}
7. Ngf3 {[%clk 0:03:00.2]} 7... cxd4 {[%clk 0:02:54]} 8. cxd4 {[%clk 0:02:59.9]}
8... g6 {[%clk 0:02:54.4]} 9. O-O {[%clk 0:02:58.2]} 9... Bg7 {[%clk 0:02:54.6]}
10. a3 {[%clk 0:02:44.1]} 10... O-O {[%clk 0:02:47.4]} 11. b4 {[%clk 0:02:42.9]}
11... a6 {[%clk 0:02:48]} 12. Nb3 {[%clk 0:02:41.6]} 12... f6 {[%clk 0:02:48]}
13. exf6 {[%clk 0:02:28.4]} 13... Qxf6 {[%clk 0:02:47.3]} 14. Bb2 {[%clk
0:02:20.6]} 14... g5 {[%clk 0:02:19.6]} 15. Qc2 {[%clk 0:02:13.2]} 15... h5
{[%clk 0:02:15.8]} 16. Bc1 {[%clk 0:01:58.1]} 16... Bh6 {[%clk 0:01:53.6]} 17.
Be3 {[%clk 0:01:19.3]} 17... e5 {[%clk 0:01:40.2]} 18. dxe5 {[%clk 0:01:08.3]}
18... Ndxe5 {[%clk 0:01:41.1]} 19. Nxe5 {[%clk 0:01:03.1]} 19... Nxe5 {[%clk
0:01:39.3]} 20. Bd4 {[%clk 0:00:58.7]} 20... Bf5 {[%clk 0:01:32.3]} 21. Bxf5
{[%clk 0:00:43.3]} 21... Qxf5 {[%clk 0:01:33.2]} 22. Qc3 {[%clk 0:00:32.7]}
22... Rae8 {[%clk 0:01:16.4]} 23. Rae1 {[%clk 0:00:31.9]} 23... Nc6 {[%clk
0:00:48.1]} 24. Bc5 {[%clk 0:00:29.7]} 24... Rxe1 {[%clk 0:00:44.3]} 25. Rxe1
{[%clk 0:00:29.6]} 25... Bg7 {[%clk 0:00:39.7]} 26. Qd2 {[%clk 0:00:27.7]} 26...
Rf7 {[%clk 0:00:38.8]} 27. Kh1 {[%clk 0:00:19.4]} 27... Kh7 {[%clk 0:00:33.9]}
28. a4 {[%clk 0:00:17.8]} 28... d4 {[%clk 0:00:30.8]} 29. b5 {[%clk 0:00:17.3]}
29... axb5 {[%clk 0:00:30.3]} 30. axb5 {[%clk 0:00:17.4]} 30... Ne5 {[%clk
0:00:28.8]} 31. Nxd4 {[%clk 0:00:16.9]} 31... Qg6 {[%clk 0:00:25.9]} 32. Ne2
{[%clk 0:00:13]} 32... Ng4 {[%clk 0:00:23.3]} 33. Ng3 {[%clk 0:00:13.2]} 33...
h4 {[%clk 0:00:22.6]} 34. Ne4 {[%clk 0:00:12.5]} 34... Bh6 {[%clk 0:00:18.6]}
35. h3 {[%clk 0:00:12.8]} 35... Nf6 {[%clk 0:00:17.7]} 36. Nxf6+ {[%clk
0:00:12.2]} 36... Qxf6 {[%clk 0:00:18.6]} 37. Bd4 {[%clk 0:00:11.4]} 37... Qf5
{[%clk 0:00:18.5]} 38. Re5 {[%clk 0:00:09.9]} 38... Qb1+ {[%clk 0:00:17.3]} 39.
Qe1 {[%clk 0:00:10.1]} 39... Qg6 {[%clk 0:00:18.1]} 40. Qe4 {[%clk 0:00:09.9]}
40... Qxe4 {[%clk 0:00:16.8]} 41. Rxe4 {[%clk 0:00:10.1]} 41... Rd7 {[%clk
0:00:17.7]} 42. Kg1 {[%clk 0:00:09.6]} 42... Kg6 {[%clk 0:00:15.8]} 43. Kf1
{[%clk 0:00:09.8]} 43... Rd5 {[%clk 0:00:15.7]} 44. Ke2 {[%clk 0:00:08.4]} 44...
Rxb5 {[%clk 0:00:14.6]} 45. Re6+ {[%clk 0:00:07.8]} 45... Kh7 {[%clk 0:00:13.7]}
46. Re7+ {[%clk 0:00:07.7]} 46... Kg8 {[%clk 0:00:13.6]} 47. Re8+ {[%clk
0:00:07.7]} 47... Kf7 {[%clk 0:00:13.4]} 48. Rh8 {[%clk 0:00:07.7]} 48... Bf8
{[%clk 0:00:12.9]} 49. Rh7+ {[%clk 0:00:07.5]} 49... Ke6 {[%clk 0:00:12.9]} 50.
Rh8 {[%clk 0:00:07.4]} 50... Be7 {[%clk 0:00:12.3]} 51. Rh6+ {[%clk 0:00:07.4]}
51... Kf5 {[%clk 0:00:12.2]} 52. Rh7 {[%clk 0:00:06.8]} 52... Bd6 {[%clk
0:00:10.7]} 53. Rf7+ {[%clk 0:00:07]} 53... Ke4 {[%clk 0:00:10.7]} 54. Ba1
{[%clk 0:00:06.8]} 54... Rb1 {[%clk 0:00:10.5]} 55. Bc3 {[%clk 0:00:06.6]} 55...
Rc1 {[%clk 0:00:10.7]} 56. Bd2 {[%clk 0:00:06.7]} 56... Rc7 {[%clk 0:00:10.7]}
57. Rxc7 {[%clk 0:00:06]} 57... Bxc7 {[%clk 0:00:11.6]} 58. Bxg5 {[%clk
0:00:06.4]} 58... b5 {[%clk 0:00:11]} 59. Bxh4 {[%clk 0:00:06.6]} 59... Be5
{[%clk 0:00:09.5]} 60. Be7 {[%clk 0:00:06.3]} 60... Kf5 {[%clk 0:00:08.9]} 61.
Bb4 {[%clk 0:00:06.3]} 61... Ke4 {[%clk 0:00:09.2]} 62. f3+ {[%clk 0:00:06.3]}
62... Kf4 {[%clk 0:00:09.6]} 63. Kf2 {[%clk 0:00:05.4]} 63... Bd4+ {[%clk
0:00:10]} 64. Kf1 {[%clk 0:00:05.6]} 64... Kg3 {[%clk 0:00:10.9]} 65. Be1+
{[%clk 0:00:05.8]} 65... Kf4 {[%clk 0:00:10.1]} 66. Bd2+ {[%clk 0:00:06.1]}
66... Kg3 {[%clk 0:00:10.2]} 67. Bb4 {[%clk 0:00:05.9]} 67... Bb6 {[%clk
0:00:08.9]} 68. Bd6+ {[%clk 0:00:05.5]} 68... Kh4 {[%clk 0:00:08.4]} 69. Ke2
{[%clk 0:00:05.1]} 69... Kg5 {[%clk 0:00:08.1]} 70. g3 {[%clk 0:00:04.6]} 70...
Bd4 {[%clk 0:00:07.6]} 71. Bb4 {[%clk 0:00:05.5]} 71... Kf5 {[%clk 0:00:07.3]}
72. h4 {[%clk 0:00:05.7]} 72... Be5 {[%clk 0:00:07.3]} 73. h5 {[%clk 0:00:05.8]}
73... Bxg3 {[%clk 0:00:07.2]} 74. h6 {[%clk 0:00:06.1]} 74... Kg6 {[%clk
0:00:06.7]} 75. Bd2 {[%clk 0:00:06.4]} 75... Bd6 {[%clk 0:00:05.9]} 76. f4
{[%clk 0:00:05.7]} 76... Kxh6 {[%clk 0:00:05.3]} 77. f5+ {[%clk 0:00:05.1]}
77... Kg7 {[%clk 0:00:05.7]} 78. Kd3 {[%clk 0:00:05.3]} 78... Kf6 {[%clk
0:00:05.4]} 79. Kd4 {[%clk 0:00:05.3]} 79... Kxf5 {[%clk 0:00:05.7]} 80. Kd5
{[%clk 0:00:05.4]} 80... Bf4 {[%clk 0:00:03.5]} 81. Kc5 {[%clk 0:00:05.1]} 81...
Bxd2 {[%clk 0:00:02.7]} 82. Kxb5 {[%clk 0:00:05.3]} 1/2-1/2

[Event "*** SCC Grand Prix: Titled Tuesday Blitz"]
[Site "Chess.com"]
[Date "2020.06.02"]
[Round "2"]
[White "Logman74"]
[Black "QueenOfTactics90"]
[Result "1-0"]
[WhiteElo "2355"]
[BlackElo "1964"]
[TimeControl "180+1"]
[EndTime "10:20:11 PDT"]
[Termination "Logman74 won by resignation"]

1. e4 {[%clk 0:03:00.9]} 1... c5 {[%clk 0:03:00.1]} 2. Nf3 {[%clk 0:03:00.2]}
2... Nc6 {[%clk 0:03:00.7]} 3. d4 {[%clk 0:03:00.2]} 3... cxd4 {[%clk
0:03:01.6]} 4. Nxd4 {[%clk 0:03:00.7]} 4... g6 {[%clk 0:03:02.1]} 5. c4 {[%clk
0:03:00]} 5... Bg7 {[%clk 0:03:02]} 6. Be3 {[%clk 0:02:59.6]} 6... Nf6 {[%clk
0:03:02.5]} 7. Nc3 {[%clk 0:02:59.8]} 7... O-O {[%clk 0:03:02.3]} 8. Be2 {[%clk
0:02:59.2]} 8... d6 {[%clk 0:03:02.5]} 9. O-O {[%clk 0:02:58.7]} 9... Nxd4
{[%clk 0:03:02]} 10. Bxd4 {[%clk 0:02:57.9]} 10... Bd7 {[%clk 0:02:56.7]} 11.
Rc1 {[%clk 0:02:56.5]} 11... Bc6 {[%clk 0:02:48.6]} 12. f3 {[%clk 0:02:51.7]}
12... Nd7 {[%clk 0:02:47.7]} 13. Bxg7 {[%clk 0:02:50.7]} 13... Kxg7 {[%clk
0:02:47.6]} 14. Qd4+ {[%clk 0:02:50.9]} 14... f6 {[%clk 0:02:46.1]} 15. Kh1
{[%clk 0:02:48.4]} 15... Qb6 {[%clk 0:02:44]} 16. Qd2 {[%clk 0:02:45.2]} 16...
a5 {[%clk 0:02:43.6]} 17. b3 {[%clk 0:02:40.7]} 17... Rad8 {[%clk 0:02:38.4]}
18. f4 {[%clk 0:02:40.2]} 18... e5 {[%clk 0:02:32.8]} 19. f5 {[%clk 0:02:14.7]}
19... Nc5 {[%clk 0:02:29.3]} 20. fxg6 {[%clk 0:02:01.6]} 20... Nxe4 {[%clk
0:02:20.1]} 21. Nxe4 {[%clk 0:01:59.8]} 21... Bxe4 {[%clk 0:02:19.9]} 22. gxh7
{[%clk 0:01:58]} 22... Bxh7 {[%clk 0:02:18.4]} 23. Bf3 {[%clk 0:01:54.7]} 23...
e4 {[%clk 0:02:15]} 24. Bg4 {[%clk 0:01:46]} 24... f5 {[%clk 0:02:14.6]} 25.
Qc3+ {[%clk 0:01:45.1]} 25... Kg8 {[%clk 0:02:11.1]} 26. Be2 {[%clk 0:01:41.9]}
26... Rd7 {[%clk 0:01:57.9]} 27. Rcd1 {[%clk 0:01:37.6]} 27... Rg7 {[%clk
0:01:55]} 28. Rd5 {[%clk 0:01:25.4]} 28... f4 {[%clk 0:01:49.1]} 29. Qxa5 {[%clk
0:01:23.1]} 29... Qe3 {[%clk 0:01:46.5]} 30. Qd2 {[%clk 0:01:19.5]} 30... Qxd2
{[%clk 0:01:30.4]} 31. Rxd2 {[%clk 0:01:18.7]} 31... Rf6 {[%clk 0:01:30.5]} 32.
c5 {[%clk 0:01:12.9]} 32... dxc5 {[%clk 0:01:23.9]} 33. Rd8+ {[%clk 0:01:11.6]}
33... Kf7 {[%clk 0:01:23.7]} 34. Rfd1 {[%clk 0:01:06.7]} 34... Kg6 {[%clk
0:01:12.8]} 35. R8d6 {[%clk 0:00:58.5]} 35... Rf7 {[%clk 0:01:08]} 36. Kg1
{[%clk 0:00:56.1]} 36... Kg5 {[%clk 0:01:04.4]} 37. R1d5+ {[%clk 0:00:53.6]}
37... Rf5 {[%clk 0:01:04.4]} 38. Kf2 {[%clk 0:00:51.4]} 38... Bg6 {[%clk
0:00:58.2]} 39. Rxf5+ {[%clk 0:00:49.6]} 39... Bxf5 {[%clk 0:00:48.6]} 40. Rd5
{[%clk 0:00:45.4]} 40... b6 {[%clk 0:00:42.4]} 41. Rd6 {[%clk 0:00:44.5]} 41...
e3+ {[%clk 0:00:39.9]} 42. Ke1 {[%clk 0:00:42.6]} 42... Rh7 {[%clk 0:00:31.8]}
43. h3 {[%clk 0:00:42.1]} 43... Be4 {[%clk 0:00:30.5]} 44. Kf1 {[%clk
0:00:38.8]} 44... Rh6 {[%clk 0:00:26]} 45. Rd8 {[%clk 0:00:35.9]} 45... Kf5
{[%clk 0:00:23.5]} 46. Rf8+ {[%clk 0:00:35.5]} 46... Ke5 {[%clk 0:00:23.8]} 47.
Re8+ {[%clk 0:00:35.6]} 47... Kd4 {[%clk 0:00:23.8]} 48. Rf8 {[%clk 0:00:32.6]}
48... Ke5 {[%clk 0:00:20]} 49. Rd8 {[%clk 0:00:31.6]} 49... Rd6 {[%clk
0:00:19.7]} 50. Rxd6 {[%clk 0:00:26.9]} 50... Kxd6 {[%clk 0:00:20.6]} 51. h4
{[%clk 0:00:26.8]} 51... Ke5 {[%clk 0:00:20.7]} 52. h5 {[%clk 0:00:24]} 52...
Kf6 {[%clk 0:00:20.7]} 53. Ke1 {[%clk 0:00:18]} 53... Kg5 {[%clk 0:00:21]} 54.
Kf1 {[%clk 0:00:17.6]} 54... Bd5 {[%clk 0:00:20.6]} 55. Bd1 {[%clk 0:00:16]}
55... Bf7 {[%clk 0:00:20.3]} 56. Bf3 {[%clk 0:00:12.7]} 56... Bxh5 {[%clk
0:00:18.7]} 57. Bd5 {[%clk 0:00:13.1]} 57... Bg6 {[%clk 0:00:17.9]} 58. Ke1
{[%clk 0:00:12.6]} 58... Bf5 {[%clk 0:00:17.7]} 59. a4 {[%clk 0:00:11]} 59...
Kg4 {[%clk 0:00:17.8]} 60. Kf1 {[%clk 0:00:11]} 60... Kg3 {[%clk 0:00:18.1]} 61.
Bc4 {[%clk 0:00:10.2]} 61... Bg4 {[%clk 0:00:18.2]} 62. Bd5 {[%clk 0:00:09.2]}
62... e2+ {[%clk 0:00:18.5]} 63. Ke1 {[%clk 0:00:08.1]} 63... f3 {[%clk
0:00:18.8]} 64. gxf3 {[%clk 0:00:07.8]} 64... Bxf3 {[%clk 0:00:19.1]} 65. Bf7
{[%clk 0:00:07.5]} 65... Kf4 {[%clk 0:00:19]} 66. Kf2 {[%clk 0:00:07]} 66... Bg4
{[%clk 0:00:16.9]} 67. Bc4 {[%clk 0:00:07]} 67... Bh5 {[%clk 0:00:16.6]} 68.
Bxe2 {[%clk 0:00:06.2]} 68... Bxe2 {[%clk 0:00:17.5]} 69. Kxe2 {[%clk
0:00:06.6]} 69... Ke4 {[%clk 0:00:18.4]} 70. Kd2 {[%clk 0:00:06.6]} 70... Kd4
{[%clk 0:00:19.3]} 71. Kc2 {[%clk 0:00:06.7]} 71... Kd5 {[%clk 0:00:19.8]} 72.
Kd3 {[%clk 0:00:06.3]} 72... Kc6 {[%clk 0:00:19.5]} 73. Kc4 {[%clk 0:00:06.3]}
73... Kb7 {[%clk 0:00:19.7]} 74. Kb5 {[%clk 0:00:06.2]} 74... Ka7 {[%clk
0:00:19.7]} 75. a5 {[%clk 0:00:05.8]} 75... bxa5 {[%clk 0:00:19.4]} 76. Kxa5
{[%clk 0:00:06.2]} 76... Kb7 {[%clk 0:00:19.9]} 77. Kb5 {[%clk 0:00:06.6]} 77...
Kb8 {[%clk 0:00:18.2]} 78. Kxc5 {[%clk 0:00:05.9]} 78... Kc7 {[%clk 0:00:18.1]}
79. Kb5 {[%clk 0:00:05.8]} 79... Kb7 {[%clk 0:00:18.3]} 80. b4 {[%clk
0:00:05.5]} 80... Kc8 {[%clk 0:00:18.1]} 81. Ka6 {[%clk 0:00:05.3]} 81... Kc7
{[%clk 0:00:17.3]} 82. b5 {[%clk 0:00:04.3]} 82... Kb8 {[%clk 0:00:17.5]} 83.
Kb6 {[%clk 0:00:04.3]} 83... Kc8 {[%clk 0:00:17.9]} 84. Ka7 {[%clk 0:00:04.3]}
84... Kd7 {[%clk 0:00:18.3]} 85. b6 {[%clk 0:00:04.7]} 85... Kd6 {[%clk
0:00:19.2]} 86. b7 {[%clk 0:00:05.2]} 86... Kd5 {[%clk 0:00:20.1]} 87. b8=Q
{[%clk 0:00:04.9]} 87... Kc4 {[%clk 0:00:21]} 88. Qb6 {[%clk 0:00:05.1]} 1-0

[Event "*** SCC Grand Prix: Titled Tuesday Blitz"]
[Site "Chess.com"]
[Date "2020.06.02"]
[Round "2"]
[White "AsselLesbekova"]
[Black "Rish_97"]
[Result "0-1"]
[WhiteElo "2292"]
[BlackElo "2638"]
[TimeControl "180+1"]
[EndTime "10:20:15 PDT"]
[Termination "Rish_97 won by resignation"]

1. e4 {[%clk 0:03:00.7]} 1... e5 {[%clk 0:02:59.4]} 2. Nf3 {[%clk 0:03:01.1]}
2... Nf6 {[%clk 0:02:59.6]} 3. Nxe5 {[%clk 0:03:01.2]} 3... d6 {[%clk
0:02:59.7]} 4. Nf3 {[%clk 0:03:01.5]} 4... Nxe4 {[%clk 0:02:59.8]} 5. Nc3 {[%clk
0:03:02.2]} 5... Nf6 {[%clk 0:02:51]} 6. d4 {[%clk 0:03:02.5]} 6... g6 {[%clk
0:02:51.4]} 7. Bc4 {[%clk 0:03:02.2]} 7... Bg7 {[%clk 0:02:51.1]} 8. Bg5 {[%clk
0:03:01.9]} 8... O-O {[%clk 0:02:45.1]} 9. O-O {[%clk 0:03:02.2]} 9... a6 {[%clk
0:02:43.9]} 10. a4 {[%clk 0:03:01.6]} 10... h6 {[%clk 0:02:43.7]} 11. Bf4 {[%clk
0:02:59.8]} 11... Nc6 {[%clk 0:02:37.4]} 12. Qd2 {[%clk 0:02:59.1]} 12... Bg4
{[%clk 0:02:35.6]} 13. Be2 {[%clk 0:02:51.2]} 13... g5 {[%clk 0:02:24.2]} 14.
Be3 {[%clk 0:02:51]} 14... Re8 {[%clk 0:02:14.3]} 15. h3 {[%clk 0:02:50.2]}
15... Bh5 {[%clk 0:02:14.4]} 16. Rfe1 {[%clk 0:02:48.7]} 16... Bg6 {[%clk
0:02:04.5]} 17. Rad1 {[%clk 0:02:48.5]} 17... Nb4 {[%clk 0:02:02.4]} 18. Rc1
{[%clk 0:02:45.6]} 18... Qd7 {[%clk 0:01:58.2]} 19. b3 {[%clk 0:02:41.3]} 19...
Nbd5 {[%clk 0:01:52.2]} 20. Nxd5 {[%clk 0:02:40]} 20... Nxd5 {[%clk 0:01:53.1]}
21. Bd3 {[%clk 0:02:40.4]} 21... Bf5 {[%clk 0:01:35]} 22. c4 {[%clk 0:02:36.9]}
22... Nf6 {[%clk 0:01:24.4]} 23. Qc2 {[%clk 0:02:33.1]} 23... Bxd3 {[%clk
0:01:21]} 24. Qxd3 {[%clk 0:02:34]} 24... Re7 {[%clk 0:01:10.8]} 25. Bd2 {[%clk
0:02:21.6]} 25... Rae8 {[%clk 0:01:10]} 26. Rxe7 {[%clk 0:02:18.9]} 26... Rxe7
{[%clk 0:01:10.9]} 27. Re1 {[%clk 0:02:19.6]} 27... Qe8 {[%clk 0:01:04.9]} 28.
Rxe7 {[%clk 0:02:18.2]} 28... Qxe7 {[%clk 0:01:05.8]} 29. Qe3 {[%clk 0:02:18.7]}
29... Ne4 {[%clk 0:00:58.4]} 30. Bc1 {[%clk 0:02:17.4]} 30... Qe6 {[%clk
0:00:55.7]} 31. Nd2 {[%clk 0:02:14]} 31... Nxd2 {[%clk 0:00:35.2]} 32. Bxd2
{[%clk 0:02:14.9]} 32... c6 {[%clk 0:00:33.3]} 33. Kf1 {[%clk 0:02:11.1]} 33...
d5 {[%clk 0:00:33]} 34. Qxe6 {[%clk 0:02:06.7]} 34... fxe6 {[%clk 0:00:33.9]}
35. Ke2 {[%clk 0:02:06.2]} 35... Bxd4 {[%clk 0:00:33.2]} 36. f3 {[%clk
0:02:04.6]} 36... Kf7 {[%clk 0:00:32.9]} 37. Kd3 {[%clk 0:02:04.8]} 37... Bf6
{[%clk 0:00:32.4]} 38. h4 {[%clk 0:02:00.8]} 38... gxh4 {[%clk 0:00:29.8]} 39.
Bxh6 {[%clk 0:01:59.6]} 39... Kg6 {[%clk 0:00:30.2]} 40. Be3 {[%clk 0:01:50.8]}
40... Kf5 {[%clk 0:00:30.2]} 41. Ke2 {[%clk 0:01:17.1]} 41... Bg5 {[%clk
0:00:29.7]} 42. Bc5 {[%clk 0:01:14.8]} 42... e5 {[%clk 0:00:25.1]} 43. Kd3
{[%clk 0:01:08.8]} 43... b5 {[%clk 0:00:17.9]} 44. axb5 {[%clk 0:01:02.4]} 44...
axb5 {[%clk 0:00:17.1]} 45. cxb5 {[%clk 0:00:58]} 45... cxb5 {[%clk 0:00:17.4]}
46. Bf2 {[%clk 0:00:55.2]} 46... Be7 {[%clk 0:00:16.7]} 47. Bg1 {[%clk
0:00:52.1]} 47... Kf4 {[%clk 0:00:15.9]} 48. Bh2+ {[%clk 0:00:47.8]} 48... Kf5
{[%clk 0:00:16.2]} 49. Bg1 {[%clk 0:00:46.3]} 49... Bd6 {[%clk 0:00:16.1]} 50.
Bb6 {[%clk 0:00:41.3]} 50... e4+ {[%clk 0:00:15.7]} 51. fxe4+ {[%clk 0:00:38.4]}
51... dxe4+ {[%clk 0:00:16.6]} 52. Ke2 {[%clk 0:00:34.6]} 52... Kg4 {[%clk
0:00:14.9]} 53. Bf2 {[%clk 0:00:32.7]} 53... Bg3 {[%clk 0:00:14.8]} 54. Bd4
{[%clk 0:00:30.1]} 54... Kf5 {[%clk 0:00:15.2]} 55. Be3 {[%clk 0:00:25.5]} 55...
Bf4 {[%clk 0:00:15.2]} 56. Bd4 {[%clk 0:00:24.4]} 56... Kg4 {[%clk 0:00:15.5]}
57. Kf2 {[%clk 0:00:21.6]} 57... e3+ {[%clk 0:00:14.1]} 58. Ke2 {[%clk 0:00:19]}
58... Kg3 {[%clk 0:00:14.4]} 59. Bf6 {[%clk 0:00:16.2]} 59... Bh6 {[%clk
0:00:12.3]} 60. Bd8 {[%clk 0:00:11.9]} 60... Bf4 {[%clk 0:00:11.5]} 61. Be7
{[%clk 0:00:12]} 61... Kg4 {[%clk 0:00:11.7]} 62. Bd8 {[%clk 0:00:11.7]} 62...
Bg5 {[%clk 0:00:12]} 63. Bc7 {[%clk 0:00:11.2]} 63... Bf4 {[%clk 0:00:11.8]} 64.
Bd8 {[%clk 0:00:11.3]} 64... Bh6 {[%clk 0:00:11.9]} 65. Be7 {[%clk 0:00:10.4]}
65... Kh5 {[%clk 0:00:12.3]} 66. Kf3 {[%clk 0:00:10.2]} 66... Bg5 {[%clk
0:00:11.8]} 67. Bxg5 {[%clk 0:00:09.8]} 67... Kxg5 {[%clk 0:00:12.5]} 68. Kxe3
{[%clk 0:00:10.7]} 68... Kg4 {[%clk 0:00:12.4]} 69. Kf2 {[%clk 0:00:11.2]} 69...
Kf4 {[%clk 0:00:12.9]} 70. Ke2 {[%clk 0:00:11.2]} 70... Kg3 {[%clk 0:00:13.4]}
71. Kf1 {[%clk 0:00:11.4]} 71... b4 {[%clk 0:00:13.8]} 72. Kg1 {[%clk
0:00:11.5]} 72... Kg4 {[%clk 0:00:14.3]} 73. Kf1 {[%clk 0:00:08.8]} 73... Kg3
{[%clk 0:00:14.1]} 74. Kg1 {[%clk 0:00:09.1]} 74... Kg4 {[%clk 0:00:13.8]} 75.
Kf2 {[%clk 0:00:09.7]} 75... Kf4 {[%clk 0:00:14.7]} 76. Ke2 {[%clk 0:00:09.8]}
76... Ke4 {[%clk 0:00:14.1]} 77. Kd2 {[%clk 0:00:08.9]} 77... Kd4 {[%clk
0:00:13.9]} 78. Kc2 {[%clk 0:00:07]} 78... Ke3 {[%clk 0:00:14.1]} 79. Kd1 {[%clk
0:00:03.9]} 79... Kf2 {[%clk 0:00:14.2]} 80. Kd2 {[%clk 0:00:04.8]} 80... Kxg2
{[%clk 0:00:14.4]} 81. Kd3 {[%clk 0:00:05.7]} 81... h3 {[%clk 0:00:14.8]} 82.
Kc4 {[%clk 0:00:06.6]} 82... h2 {[%clk 0:00:15.7]} 83. Kxb4 {[%clk 0:00:07.5]}
83... h1=Q {[%clk 0:00:15.8]} 84. Ka5 {[%clk 0:00:08.4]} 0-1